bitfinex/quotes_SOLUSD_20260222
["timestamp","ask_amount","ask_price","bid_price","bid_amount"]
[1771792547916,0.48987903,83.297,83.271,0.45620857]
[1771792548335,12.0053784,83.296,83.271,0.45620857]
[1771792548533,0.48987903,83.295,83.271,0.45620857]
[1771792548734,12.0053784,83.296,83.271,0.45620857]
[1771792553738,0.48987903,83.3,83.271,0.45620857]
[1771792553739,0.48987903,83.297,83.271,0.45620857]
[1771792556038,12.0053784,83.296,83.271,0.45620857]
[1771792557727,12.49525743,83.296,83.271,0.45620857]
[1771792558042,0.48987903,83.296,83.271,0.45620857]
[1771792564330,0.48987903,83.296,83.27,3.10333835]
[1771792564331,12.00552254,83.295,83.272,0.45620857]
[1771792565261,30.00957226,83.307,83.272,0.45620857]
[1771792566255,0.48987903,83.306,83.272,0.45620857]
[1771792567559,12.00408138,83.305,83.272,0.45620857]
[1771792567739,0.48987903,83.304,83.272,0.45620857]
[1771792570554,0.48554526,83.302,83.272,0.45620857]
[1771792574258,12.0046578,83.301,83.272,0.45620857]
[1771792574463,0.48554526,83.3,83.272,0.45620857]
[1771792576559,0.49998806,83.298,83.272,0.45620857]
[1771792578761,0.49998806,83.296,83.272,0.45620857]
[1771792582068,0.49998806,83.294,83.272,0.45620857]
[1771792583850,0.49998806,83.292,83.272,0.45620857]
[1771792585771,0.49998806,83.308,83.274,0.49455088]
[1771792585956,0.49998806,83.306,83.276,0.49455088]
[1771792587453,12.00408138,83.305,83.276,0.49455088]
[1771792587677,0.49998806,83.304,83.276,0.49455088]
[1771792588783,12.00436959,83.303,83.276,0.49455088]
[1771792589072,0.49998806,83.302,83.276,0.49455088]
[1771792598279,0.49998806,83.302,83.278,0.4877322]
[1771792608497,0.48077694,83.3,83.278,0.4877322]
[1771792621517,0.48077694,83.298,83.278,0.4877322]
[1771792623710,13.36777329,83.323,83.281,0.4877322]
[1771792623711,0.48077694,83.318,83.281,0.4877322]
[1771792628828,0.49702181,83.316,83.281,0.4877322]
[1771792635023,12.00264058,83.315,83.281,0.4877322]
[1771792635222,0.49695304,83.314,83.281,0.4877322]
[1771792638920,0.49695304,83.299,83.227,45.40193818]
[1771792639124,0.49695304,83.289,83.25,3.1050088]
[1771792640804,0.49695304,83.289,83.26,3.1050088]
[1771792641020,0.49695304,83.287,83.261,0.4819019]
[1771792643911,0.49695304,83.285,83.261,0.4819019]
[1771792645321,13.51296992,83.298,83.263,0.4819019]
[1771792645322,0.49695304,83.296,83.263,0.4819019]
[1771792649231,0.49695304,83.296,83.265,0.4819019]
[1771792651730,0.49695304,83.314,83.281,0.4819019]
[1771792653017,0.49695304,83.312,83.281,0.4819019]
[1771792654527,3.10581861,83.31,83.281,0.4819019]
[1771792654827,0.49695304,83.309,83.281,0.4819019]
[1771792655529,12.0036491,83.308,83.281,0.4819019]
[1771792655712,0.49695304,83.307,83.281,0.4819019]
[1771792659536,0.47587755,83.305,83.281,0.4819019]
[1771792661842,12.48010303,83.304,83.281,0.4819019]
[1771792662024,0.47587755,83.303,83.281,0.4819019]
[1771792674463,0.47587755,83.299,83.275,0.45239728]
[1771792675746,12.00509015,83.298,83.246,45.40193818]
[1771792676040,0.47587755,83.289,83.25,3.10581861]
[1771792676237,0.47587755,83.279,83.24,3.10581861]
[1771792676466,0.47587755,83.279,83.25,3.10581861]
[1771792677948,0.47587755,83.279,83.251,0.1116964]
[1771792678551,0.47587755,83.279,83.252,0.1116964]
[1771792683964,0.47587755,83.279,83.26,3.10581861]
[1771792684157,0.47587755,83.279,83.261,0.1116964]
[1771792696871,0.47587755,83.279,83.251,12.01186772]
[1771792696872,0.4534628,83.278,83.251,12.01186772]
[1771792698657,0.4534628,83.278,83.251,0.1116964]
[1771792701478,0.4534628,83.278,83.252,0.1116964]
[1771792703571,3.10581861,83.29,83.261,0.1116964]
[1771792703572,0.4534628,83.289,83.261,0.1116964]
[1771792704563,0.4534628,83.289,83.262,0.1116964]
[1771792708189,0.4534628,83.287,83.262,0.1116964]
[1771792708488,0.4534628,83.309,83.262,0.1116964]
[1771792709473,12.0036491,83.308,83.263,0.28432314]
[1771792709786,0.4534628,83.307,83.264,0.1116964]
[1771792710476,0.4534628,83.299,83.264,0.1116964]
[1771792712284,0.4534628,83.279,83.245,12.01273349]
[1771792712584,0.4534628,83.279,83.246,0.1116964]
[1771792712975,0.4534628,83.269,83.246,0.1116964]
[1771792714287,0.4534628,83.296,83.252,0.1116964]
[1771792715480,0.4534628,83.296,83.254,0.1116964]
[1771792716188,11.21481237,83.32,83.271,0.46752711]
[1771792716381,3.10591512,83.31,83.258,0.46752711]
[1771792716585,7.05403436,83.311,83.258,0.46752711]
[1771792716787,3.10591512,83.3,83.258,0.46752711]
[1771792718398,0.49544698,83.297,83.26,0.45635785]
[1771792719999,0.49544698,83.295,83.262,0.45635785]
[1771792720581,0.49544698,83.289,83.262,0.45635785]
[1771792725904,0.49544698,83.289,83.264,0.45635785]
[1771792727200,0.49544698,83.289,83.263,12.01013655]
[1771792727507,0.49544698,83.287,83.263,12.01013655]
[1771792727694,0.49544698,83.279,83.257,12.01087504]
[1771792729200,0.49544698,83.279,83.254,0.45635785]
[1771792731809,0.49544698,83.279,83.256,0.45635785]
[1771792737696,0.49544698,83.279,83.242,45.40193818]
[1771792737697,0.49544698,83.279,83.258,0.45635785]
[1771792740605,0.49544698,83.279,83.24,3.10591512]
[1771792740606,12.00336094,83.31,83.262,0.45635785]
[1771792740813,3.10591512,83.3,83.266,0.45635785]
[1771792741108,12.00336094,83.31,83.266,0.45635785]
[1771792741305,15.10927606,83.31,83.266,0.45635785]
[1771792741701,15.10927606,83.31,83.268,0.45635785]
[1771792742794,0.49544698,83.309,83.268,0.45635785]
[1771792744989,12.0036491,83.308,83.27,3.10591512]
[1771792745196,0.49544698,83.307,83.271,0.45635785]
[1771792747806,0.49544698,83.305,83.273,0.45635785]
[1771792749921,0.48658074,83.303,83.275,0.4681229]
[1771792751922,0.48658074,83.303,83.277,0.4681229]
[1771792766528,0.48658074,83.303,83.279,0.46036569]
[1771792780043,0.46164681,83.299,83.279,0.46036569]
[1771792794280,0.43939382,83.289,83.242,0.49851458]
[1771792794464,3.10463192,83.29,83.244,0.49851458]
[1771792794654,0.43939382,83.289,83.255,0.49851458]
[1771792795055,3.10463192,83.28,83.255,0.49851458]
[1771792796466,3.10463192,83.28,83.257,0.49851458]
[1771792799572,3.10463192,83.28,83.259,0.49851458]
[1771792799975,0.43939382,83.279,83.259,0.49851458]
[1771792802686,0.43939382,83.279,83.261,0.49851458]
[1771792804866,0.43939382,83.279,83.262,12.0102808]
[1771792805072,0.43939382,83.279,83.263,0.49851458]
[1771792808794,0.43939382,83.279,83.259,0.46921474]
[1771792810876,0.43939382,83.279,83.261,0.46921474]
[1771792813118,3.10463192,83.28,83.236,0.46921474]
[1771792813119,0.43939382,83.269,83.236,0.46921474]
[1771792813412,0.43939382,83.259,83.236,0.46921474]
[1771792815190,0.43939382,83.259,83.221,42.34101555]
[1771792816800,3.10463192,83.26,83.223,0.28432314]
[1771792817183,3.10463192,83.26,83.226,0.45578192]
[1771792817798,3.5746938,83.26,83.226,0.45578192]
[1771792818298,3.5746938,83.26,83.236,0.45578192]
[1771792820400,3.5746938,83.26,83.238,0.45578192]
[1771792820589,0.47006188,83.259,83.238,0.45578192]
[1771792822589,0.47006188,83.259,83.24,0.45578192]
[1771792824211,0.47006188,83.259,83.241,12.01331074]
[1771792824509,0.47006188,83.259,83.242,0.45578192]
[1771792825503,0.47006188,83.259,83.244,0.45578192]
[1771792828496,0.47006188,83.259,83.246,0.45578192]
[1771792830606,0.47006188,83.279,83.248,0.45578192]
[1771792830819,3.10765521,83.27,83.248,0.45578192]
[1771792830991,0.47006188,83.269,83.248,0.45578192]
[1771792832808,12.00710166,83.285,83.25,0.45578192]
[1771792833000,3.10765521,83.29,83.256,0.45578192]
[1771792833204,0.47006188,83.289,83.256,0.45578192]
[1771792835312,0.47006188,83.279,83.258,0.45578192]
[1771792835522,0.47006188,83.279,83.257,12.01100207]
[1771792836315,0.47006188,83.279,83.257,12.46678399]
[1771792838911,0.47006188,83.279,83.258,0.45402952]
[1771792843124,0.47006188,83.279,83.26,0.45402952]
[1771792845020,0.47006188,83.279,83.262,0.45402952]
[1771792848117,0.47006188,83.279,83.253,42.3248502]
[1771792848316,0.47006188,83.279,83.254,0.28432314]
[1771792848707,0.47006188,83.279,83.255,0.45402952]
[1771792851328,0.47130272,83.269,83.255,0.45402952]
[1771792851529,0.47130272,83.269,83.253,12.01157916]
[1771792854835,0.47130272,83.269,83.253,0.45402952]
[1771792860527,0.47130272,83.269,83.247,0.45402952]
[1771792861551,0.47130272,83.259,83.246,12.01258919]
[1771792861734,0.47130272,83.259,83.226,0.45402952]
[1771792862032,3.10765521,83.25,83.226,0.45402952]
[1771792862337,3.57895793,83.25,83.226,0.45402952]
[1771792863042,3.10765521,83.24,83.228,0.45402952]
[1771792863238,0.47130272,83.239,83.228,0.45402952]
[1771792864017,0.47130272,83.239,83.22,0.1]
[1771792864018,0.47130272,83.239,83.221,0.45402952]
[1771792864430,0.47130272,83.239,83.221,12.47022735]
[1771792864622,0.47130272,83.239,83.222,0.45402952]
[1771792867629,0.47130272,83.229,83.22,0.1]
[1771792869131,3.10765521,83.23,83.22,0.1]
[1771792869327,0.48275667,83.229,83.22,0.1]
[1771792874939,0.48275667,83.229,83.212,0.49111351]
[1771792875455,0.48275667,83.229,83.207,12.01818597]
[1771792875655,0.47217996,83.219,83.2,0.57922303]
[1771792882842,3.10765521,83.24,83.2,0.57922303]
[1771792882843,0.47217996,83.226,83.202,0.47922303]
[1771792883050,48.00571091,83.324,83.206,0.47922303]
[1771792883051,0.16972444,83.23,83.206,0.47922303]
[1771792883661,0.6419044,83.23,83.206,0.47922303]
[1771792885858,0.47217996,83.229,83.208,0.47922303]
[1771792889360,0.47217996,83.229,83.21,0.47922303]
[1771792890562,30.02728672,83.258,83.211,12.01764189]
[1771792890563,3.58264918,83.22,83.211,12.01764189]
[1771792891966,3.58264918,83.22,83.206,0.47922303]
[1771792891967,0.47217996,83.219,83.206,0.47922303]
[1771792894666,0.47217996,83.229,83.208,0.47922303]
[1771792906962,0.46746118,83.239,83.21,0.47090414]
[1771792910479,0.46746118,83.239,83.212,0.47090414]
[1771792912282,0.46746118,83.239,83.214,0.47090414]
[1771792916388,0.46746118,83.239,83.215,12.01706423]
[1771792916886,0.46746118,83.239,83.216,0.47090414]
[1771792921296,0.46746118,83.239,83.215,12.01706423]
[1771792921297,0.46746118,83.237,83.212,0.47090414]
[1771792921482,0.46746118,83.229,83.212,0.47090414]
[1771792924087,0.46746118,83.229,83.214,0.47090414]
[1771792928014,0.46746118,83.229,83.216,0.47090414]
[1771792946126,0.49810991,83.264,83.218,0.46694308]
[1771792946327,0.49810991,83.249,83.218,0.46694308]
[1771792949235,0.49810991,83.249,83.219,12.01648661]
[1771792949539,0.49810991,83.249,83.22,0.46694308]
[1771792950525,12.01230059,83.248,83.22,0.46694308]
[1771792950833,0.49810991,83.249,83.226,0.46694308]
[1771792951533,0.49810991,83.249,83.227,0.46694308]
[1771792955726,12.01227744,83.249,83.227,0.46694308]
[1771792955917,0.49810991,83.248,83.227,0.46694308]
[1771793003781,0.49892183,83.262,83.228,0.47118363]
[1771793004076,0.49892183,83.259,83.228,0.47118363]
[1771793005980,0.49892183,83.257,83.228,0.47118363]
[1771793006684,0.49892183,83.257,83.23,0.47118363]
[1771793006889,12.01085781,83.258,83.23,0.47118363]
[1771793007196,0.49892183,83.257,83.23,0.47118363]
[1771793008583,0.49892183,83.255,83.23,0.47118363]
[1771793009987,0.49892183,83.253,83.23,0.47118363]
[1771793010282,0.49892183,83.253,83.232,0.47118363]
[1771793013788,0.49892183,83.258,83.232,0.47118363]
[1771793015583,0.49892183,83.256,83.232,0.47118363]
[1771793017891,12.01129061,83.255,83.232,0.47118363]
[1771793018084,0.49892183,83.254,83.232,0.47118363]
[1771793021696,12.01157916,83.253,83.232,0.47118363]
[1771793021898,0.4877524,83.262,83.236,0.45914507]
[1771793025497,0.4877524,83.262,83.237,0.45914507]
[1771793025790,0.4877524,83.279,83.245,0.45914507]
[1771793026198,0.4877524,83.279,83.241,45.40193818]
[1771793026199,0.4877524,83.279,83.251,0.45914507]
[1771793027190,0.4877524,83.277,83.251,0.45914507]
[1771793029297,12.49601408,83.276,83.251,0.45914507]
[1771793030195,0.4877524,83.275,83.251,0.45914507]
[1771793030410,12.00855008,83.274,83.251,0.45914507]
[1771793030701,12.49630248,83.274,83.251,0.45914507]
[1771793033019,0.4877524,83.288,83.255,0.45914507]
[1771793036292,0.4877524,83.286,83.257,0.45914507]
[1771793038015,12.00602475,83.292,83.271,0.45914507]
[1771793038197,0.4877524,83.296,83.275,0.45914507]
[1771793039515,0.4877524,83.296,83.271,0.45914507]
[1771793039712,0.4877524,83.279,83.258,45.40193818]
[1771793039915,0.4877524,83.279,83.253,12.01143618]
[1771793040218,0.4877524,83.279,83.254,0.28432314]
[1771793041616,0.4877524,83.279,83.255,0.45914507]
[1771793041918,0.4877524,83.279,83.254,0.28432314]
[1771793041919,0.4877524,83.279,83.257,0.45914507]
[1771793053728,12.00797329,83.278,83.257,0.45914507]
[1771793053940,0.4850844,83.277,83.253,0.28432314]
[1771793056932,0.4850844,83.277,83.253,12.29580039]
[1771793058427,0.4850844,83.277,83.253,12.77463617]
[1771793058631,0.4850844,83.277,83.255,0.28432314]
[1771793067755,0.4850844,83.277,83.254,0.76315892]
[1771793067945,0.4850844,83.277,83.255,0.47883578]
[1771793077573,10.60666184,83.28,83.242,45.40193818]
[1771793077574,0.4541045,83.275,83.243,12.49185789]
[1771793077754,0.4541045,83.275,83.244,0.76315892]
[1771793077949,0.4541045,83.275,83.245,0.47883578]
[1771793080169,12.00855008,83.274,83.245,0.47883578]
[1771793080473,0.46824167,83.273,83.245,0.47883578]
[1771793081678,0.46824167,83.273,83.247,0.47537884]
[1771793093387,3.10666184,83.27,83.247,0.47537884]
[1771793093689,0.46824167,83.269,83.247,0.47537884]
[1771793096191,0.46824167,83.267,83.247,0.47537884]
[1771793098776,10.60666184,83.28,83.231,0.47537884]
[1771793098777,0.46824167,83.259,83.231,0.47537884]
[1771793098982,0.46824167,83.259,83.206,60.09157086]
[1771793098983,0.46824167,83.259,83.227,0.47537884]
[1771793100505,10.60666184,83.28,83.214,30.04273271]
[1771793100506,0.46824167,83.279,83.256,0.47537884]
[1771793103600,0.46824167,83.279,83.257,12.01100207]
[1771793103778,0.46824167,83.279,83.257,12.48638091]
[1771793104698,0.46824167,83.279,83.258,0.47537884]
[1771793110208,0.46824167,83.279,83.259,12.46712014]
[1771793115288,0.46824167,83.279,83.26,0.45141903]
[1771793146839,0.46824167,83.279,83.256,0.47888727]
[1771793153835,0.46824167,83.279,83.257,12.01100207]
[1771793154021,0.46824167,83.279,83.257,12.48988934]
[1771793154336,0.46824167,83.279,83.258,0.47888727]
[1771793161333,0.46824167,83.279,83.26,0.47888727]
[1771793230236,7.5,83.28,83.262,0.48801857]
[1771793230823,7.9685001,83.28,83.262,0.48801857]
[1771793231136,0.4685001,83.279,83.262,0.48801857]
[1771793260569,30.00748739,83.313,83.264,0.28432314]
[1771793260769,12.00336094,83.31,83.28,3.10617107]
[1771793260954,30.00748739,83.313,83.28,15.11383355]
[1771793262654,0.5,83.31,83.28,15.11383355]
[1771793262975,0.5,83.315,83.29,3.10617107]
[1771793264067,0.5,83.315,83.287,12.00660499]
[1771793270670,0.5,83.315,83.283,0.28432314]
[1771793275176,0.5,83.315,83.284,12.0071082]
[1771793275383,0.5,83.315,83.29,3.10617107]
[1771793278282,0.5,83.315,83.291,12.29042223]
[1771793280584,0.5,83.315,83.3,3.10617107]
[1771793281085,0.5,83.315,83.291,12.29042223]
[1771793284387,0.5,83.315,83.291,0.28432314]
[1771793286092,0.5,83.315,83.293,0.28432314]
[1771793287993,0.5,83.315,83.294,12.00566667]
[1771793288194,0.5,83.315,83.295,0.28432314]
[1771793290694,0.5,83.315,83.296,12.0053784]
[1771793291698,0.5,83.315,83.293,0.28432314]
[1771793292994,0.2,83.32,83.3,3.10617107]
[1771793292995,0.5,83.319,83.3,3.10617107]
[1771793293394,0.5,83.319,83.295,0.28432314]
[1771793296897,0.5,83.319,83.296,12.0053784]
[1771793297102,0.2,83.32,83.3,3.10617107]
[1771793297687,0.5,83.319,83.3,3.10617107]
[1771793302919,0.2,83.32,83.31,3.10617107]
[1771793303224,0.2,83.33,83.31,3.10617107]
[1771793303225,0.5,83.329,83.311,0.28432314]
[1771793303399,0.2,83.33,83.311,0.28432314]
[1771793304201,0.2,83.33,83.312,12.00307278]
[1771793304416,0.2,83.33,83.313,0.28432314]
[1771793307418,0.2,83.33,83.313,0.28432314]
[1771793307798,0.2,83.33,83.32,3.10617107]
[1771793308199,0.2,83.33,83.315,0.28432314]
[1771793309903,0.2,83.33,83.316,12.00249651]
[1771793310226,0.2,83.34,83.316,12.00249651]
[1771793310405,0.2,83.34,83.321,0.28432314]
[1771793310406,0.5,83.339,83.321,0.28432314]
[1771793311421,0.5,83.339,83.321,12.14393783]
[1771793313228,0.5,83.339,83.322,0.14216157]
[1771793316628,0.5,83.339,83.324,0.28432314]
[1771793321719,0.5,83.339,83.325,12.00120012]
[1771793324938,0.2,83.34,83.325,12.00120012]
[1771793325129,0.5,83.339,83.325,12.00120012]
[1771793329546,0.2,83.34,83.331,12.000336]
[1771793349262,0.2,83.35,83.332,0.28432314]
[1771793349556,0.7,83.36,83.341,0.28432314]
[1771793350145,0.7,83.36,83.35,3.10116036]
[1771793350354,0.2,83.36,83.351,11.99745653]
[1771793350555,0.2,83.37,83.352,0.28432314]
[1771793350757,0.5,83.369,83.352,0.28432314]
[1771793351356,0.5,83.369,83.36,3.10116036]
[1771793356560,0.2,83.37,83.36,15.0972188]
[1771793361751,0.7,83.38,83.354,0.28432314]
[1771793361953,0.7,83.38,83.37,3.10116036]
[1771793362159,0.5,83.379,83.36,3.10116036]
[1771793365756,0.5,83.379,83.361,11.99601732]
[1771793369084,0.5,83.379,83.36,3.10116036]
[1771793369264,0.5,83.379,83.36,15.09732022]
[1771793369797,0.5,83.379,83.341,29.99711609]
[1771793370084,0.5,83.379,83.34,3.10116036]
[1771793370790,0.5,83.379,83.341,0.28432314]
[1771793371585,0.5,83.377,83.35,3.10116036]
[1771793372585,0.5,83.377,83.351,11.99745653]
[1771793373282,0.5,83.377,83.35,3.09904681]
[1771793374789,0.5,83.375,83.35,3.09904681]
[1771793379000,0.5,83.375,83.351,11.99745653]
[1771793379584,3.29904681,83.38,83.331,30.00068512]
[1771793379585,0.5,83.369,83.344,11.99834038]
[1771793382098,0.5,83.369,83.331,42.00102112]
[1771793382284,0.5,83.369,83.332,0.28432314]
[1771793382799,0.5,83.359,83.331,12.000336]
[1771793384587,0.5,83.359,83.321,12.2860994]
[1771793384884,0.5,83.359,83.321,42.29054005]
[1771793401115,12.49633248,83.359,83.321,42.29054005]
[1771793401425,0.5,83.358,83.321,42.29054005]
[1771793402513,0.5,83.339,83.3,3.09904681]
[1771793402699,0.5,83.329,83.3,3.09904681]
[1771793402899,0.5,83.329,83.301,12.0046578]
[1771793404521,0.5,83.329,83.295,0.28432314]
[1771793405626,0.5,83.328,83.295,0.28432314]
[1771793406528,0.5,83.328,83.296,12.0053784]
[1771793416929,0.5,83.327,83.296,12.0053784]
[1771793427643,0.5,83.326,83.296,12.0053784]
[1771793427841,0.5,83.319,83.291,12.00609909]
[1771793429842,0.5,83.319,83.281,12.29186387]
[1771793436851,3.104129,83.32,83.281,12.29186387]
[1771793436852,0.5,83.317,83.281,12.29186387]
[1771793437153,0.5,83.309,83.271,12.00898271]
[1771793437530,0.5,83.307,83.271,12.00898271]
[1771793440451,0.5,83.305,83.271,12.00898271]
[1771793441645,0.5,83.303,83.271,12.00898271]
[1771793442440,0.5,83.299,83.271,12.00898271]
[1771793443736,0.5,83.298,83.271,12.00898271]
[1771793446252,0.5,83.296,83.27,0.2]
[1771793446447,0.46429165,83.289,83.253,12.0114713]
[1771793446831,0.46429165,83.289,83.25,0.2]
[1771793448830,0.46429165,83.279,83.251,12.01186772]
[1771793451754,0.46429165,83.279,83.252,0.2]
[1771793452951,0.46429165,83.279,83.252,12.21160614]
[1771793459661,0.46429165,83.279,83.253,0.2]
[1771793460856,3.104129,83.29,83.242,12.01316643]
[1771793460857,7.5,83.3,83.271,0.2]
[1771793461042,0.46429165,83.299,83.271,0.2]
[1771793461555,0.46429165,83.299,83.271,12.20890736]
[1771793461759,0.46429165,83.299,83.28,3.104129]
[1771793462063,0.46429165,83.297,83.271,0.2]
[1771793475369,0.45172543,83.295,83.271,0.2]
[1771793485803,0.46001927,83.289,83.231,0.2]
[1771793486097,0.46001927,83.279,83.241,0.2]
[1771793487502,0.46001927,83.277,83.242,0.2]
[1771793488701,0.46001927,83.277,83.251,0.2]
[1771793490608,0.46001927,83.277,83.251,12.211809]
[1771793490909,0.46001927,83.277,83.252,0.2]
[1771793497111,0.46001927,83.275,83.251,12.011809]
[1771793497408,0.46001927,83.275,83.25,3.10643265]
[1771793499713,0.491979,83.273,83.25,3.10643265]
[1771793501608,0.3,83.269,83.221,0.4595953]
[1771793501809,0.3,83.269,83.21,3.30643265]
[1771793501810,0.1,83.249,83.21,3.30643265]
[1771793502111,0.1,83.249,83.211,0.4595953]
[1771793503618,0.1,83.239,83.211,0.4595953]
[1771793504918,0.1,83.239,83.21,0.2]
[1771793505224,0.1,83.239,83.21,0.6595953]
[1771793506516,0.1,83.238,83.21,0.6595953]
[1771793509709,0.1,83.238,83.21,0.2]
[1771793509910,0.1,83.238,83.211,0.4595953]
[1771793521411,3.10643265,83.22,83.21,1e-08]
[1771793521618,0.1,83.219,83.2,1e-08]
[1771793522727,3.69383402,83.226,83.2,0.50000001]
[1771793523737,12.0156203,83.225,83.2,0.50000001]
[1771793527821,42.05264991,83.229,83.2,0.50000001]
[1771793534354,3.69383402,83.236,83.2,0.50000001]
[1771793536655,42.04961854,83.235,83.201,0.5]
[1771793537429,12.01417672,83.235,83.211,0.5]
[1771793540440,12.01359939,83.239,83.211,0.5]
[1771793553560,3.69383402,83.263,83.221,0.5]
[1771793553864,3.10643265,83.25,83.221,0.5]
[1771793555760,3.10643265,83.25,83.211,0.5]
[1771793556547,42.04254705,83.249,83.211,0.5]
[1771793577986,3.97815716,83.259,83.211,0.5]
[1771793580691,3.10988038,83.25,83.211,0.5]
[1771793582793,42.04254705,83.249,83.211,0.5]
[1771793584994,3.10988038,83.24,83.211,0.5]
[1771793589095,42.04759787,83.239,83.201,0.5]
[1771793589296,3.10988038,83.23,83.201,0.5]
[1771793592696,42.05264991,83.229,83.201,0.5]
[1771793599886,0.45339362,83.219,83.2,1e-08]
[1771793600995,0.45339362,83.217,83.19,0.1]
[1771793602197,0.45339362,83.209,83.19,0.1]
[1771793604892,0.45339362,83.207,83.19,0.1]
[1771793605519,0.45339362,83.199,83.17,0.1]
[1771793606508,12.01951969,83.198,83.17,0.1]
[1771793606711,0.45339362,83.197,83.17,0.1]
[1771793607506,0.45339362,83.197,83.171,0.46204674]
[1771793607702,3.10988038,83.19,83.171,0.46204674]
[1771793607923,0.45339362,83.189,83.171,0.46204674]
[1771793610202,0.45339362,83.187,83.171,0.46204674]
[1771793614301,12.47464719,83.186,83.171,0.46204674]
[1771793615314,0.45339362,83.185,83.171,0.46204674]
[1771793619439,0.45489258,83.183,83.17,0.1]
[1771793619612,0.45489258,83.179,83.17,0.1]
[1771793619813,0.45489258,83.183,83.17,0.1]
[1771793620014,0.45489258,83.183,83.17,0.57439386]
[1771793623526,0.45489258,83.181,83.16,0.1]
[1771793623715,0.45489258,83.179,83.15,0.1]
[1771793624634,0.45489258,83.169,83.14,0.1]
[1771793625729,0.45489258,83.167,83.141,0.47439386]
[1771793626640,0.45489258,83.164,83.141,0.47439386]
[1771793627934,0.45489258,83.162,83.14,0.57439386]
[1771793628935,12.02486742,83.161,83.14,0.57439386]
[1771793629121,12.47976,83.161,83.14,0.57439386]
[1771793630130,12.02515662,83.159,83.14,0.57439386]
[1771793631635,0.45541723,83.149,83.13,0.1]
[1771793631938,0.45541723,83.158,83.12,15.24461061]
[1771793632740,0.45541723,83.156,83.12,15.24461061]
[1771793633643,12.02544584,83.157,83.07,0.18916554]
[1771793633644,0.45489258,83.127,83.07,0.18916554]
[1771793633832,0.45489258,83.076,83.016,0.18916554]
[1771793634021,3.11386742,83.05,83.016,0.18916554]
[1771793634418,19.25950385,83.084,83.041,0.18916554]
[1771793634653,3.11386742,83.09,83.04,3.11386742]
[1771793634843,3.11386742,83.09,83.05,3.11386742]
[1771793635542,3.11386742,83.09,83.04,3.11386742]
[1771793635753,42.12046452,83.095,83.04,3.11386742]
[1771793635754,12.03441843,83.095,83.06,3.11386742]
[1771793636051,3.11386742,83.11,83.071,0.28432314]
[1771793636638,12.03108833,83.118,83.08,3.11386742]
[1771793637338,3.11386742,83.11,83.073,0.28432314]
[1771793638835,12.53137783,83.116,83.071,0.28432314]
[1771793639142,0.5,83.115,83.071,0.28432314]
[1771793639340,0.5,83.129,83.09,3.11386742]
[1771793640438,0.5,83.109,83.07,3.11386742]
[1771793640821,3.11386742,83.11,83.07,3.11386742]
[1771793640822,0.5,83.107,83.07,3.11386742]
[1771793641857,12.53171621,83.114,83.071,12.32221843]
[1771793642044,0.5,83.149,83.101,0.28432314]
[1771793642241,0.5,83.149,83.11,3.11386742]
[1771793642439,0.5,83.169,83.14,3.11386742]
[1771793642835,0.5,83.167,83.14,3.11386742]
[1771793645151,12.02385532,83.168,83.14,3.11386742]
[1771793645728,3.69383402,83.192,83.15,3.11386742]
[1771793645729,0.5,83.188,83.15,3.11386742]
[1771793646946,3.11386742,83.17,83.135,12.02853106]
[1771793647131,0.5,83.167,83.13,3.11386742]
[1771793649848,0.5,83.165,83.13,3.11386742]
[1771793650048,0.5,83.165,83.122,12.03040978]
[1771793650932,0.5,83.159,83.122,12.03040978]
[1771793651135,0.5,83.157,83.122,12.03040978]
[1771793653556,0.5,83.155,83.122,12.03040978]
[1771793657364,0.5,83.17,83.13,3.11386742]
[1771793658352,0.5,83.169,83.13,3.11386742]
[1771793658661,0.5,83.167,83.131,12.02920691]
[1771793660659,0.5,83.165,83.131,12.02920691]
[1771793663365,0.5,83.163,83.131,12.02920691]
[1771793666369,12.02472283,83.162,83.131,12.02920691]
[1771793666672,0.5,83.161,83.131,12.02920691]
[1771793668968,0.5,83.149,83.11,30.08049899]
[1771793669271,0.5,83.149,83.11,3.11386742]
[1771793669774,0.5,83.149,83.12,3.11386742]
[1771793670072,0.5,83.149,83.11,3.11386742]
[1771793671167,0.5,83.147,83.12,3.11386742]
[1771793672355,0.5,83.168,83.13,3.11386742]
[1771793674276,0.5,83.166,83.13,3.11386742]
[1771793674465,0.5,83.166,83.113,0.28432314]
[1771793674674,0.5,83.129,83.091,12.03499777]
[1771793675176,0.5,83.129,83.092,0.28432314]
[1771793675874,0.5,83.129,83.092,0.14216157]
[1771793676877,0.5,83.129,83.1,3.11386742]